Cogmind - Beta 16.1 @@@ ROGUE MODE // 2026.04.01 @ 14:09:11 Player: Jiber Result: Destroyed by L-41 Fighter with Axe Performance ------------- Evolutions (3) 1500 Regions Visited (7) 1400 Robots Destroyed (120) 600 Value Destroyed (4220) 4220 Prototype IDs (11) 220 Alien Tech Used (0) 0 Bonus (372) 372 TOTAL SCORE: 8312 Bonus ------- High Alert Combat Kills 372 Cogmind --------- Core Integrity 0/700 Matter 105/300 Energy 100/100 System Corruption 2% Temperature Cool (11) Movement Core (50) Location -7/Storage Parts ------- > --- POWER (1) -------- (None) > --- PROPULSION (2) --- (None) > --- UTILITY (6) ------ (None) > --- WEAPON (4) ------- (None) > --- INVENTORY (5) ---- Drone Bay (2/2) Cooled Particle Cannon Heavy Rocket Launcher Peak State ------------ > --- POWER ------------ Improved Deuterium Engine > --- PROPULSION ------- Wheel Cooled Aerolev Unit > --- UTILITY ---------- Improved Cooling System Medium Storage Unit Advanced Targeting Computer Hacking Suite Corruption Screen Drone Bay > --- WEAPON ----------- Cooled Pulse Rifle Cooled Particle Cannon Mini Assault Cannon Mini Assault Cannon > --- INVENTORY -------- Light Nuclear Core Improved Carbon-fiber Leg Improved Carbon-fiber Leg Improved Carbon-fiber Leg Improved Cooling System Improved Cooling System Cooled Particle Cannon Cooled Particle Cannon Heavy Rocket Launcher Micro-nuke Launcher [Rating: 55] Favorites ----------- Power Light Nuclear Core Engine Improved Ion Engine Power Core Light Nuclear Core Propulsion Aluminum Leg Leg Aluminum Leg Wheel Wheel Hover Unit Improved Hover Unit Utility Medium Storage Unit Device Improved Cooling System Storage Medium Storage Unit Processor Advanced Targeting Computer Hackware Hacking Suite Protection Improved Propulsion Shielding Weapon Ion Cannon Energy Gun Particle Gun Energy Cannon Ion Cannon Ballistic Gun High-powered Shotgun Ballistic Cannon Flak Cannon Launcher Grenade Launcher Impact Weapon Impact Mace Piercing Weapon Spear Build | -11 -10 -9 -8 -7 -7 -7 -7 ------- Run | Yrd Mat Mat Mat Fac Was Fac Sto Slots Evolved 6 | . . 2 2 2 . . . Power . | . . . . . . . . Propulsion . | . . . . . . . . Utility 4 | . . 2 1 1 . . . Weapon 2 | . . . 1 1 . . . Parts Attached 89 | 8 11 9 12 8 2 3 36 Power 11 | 1 1 1 2 . . . 6 Engine 5 | 1 1 1 . . . . 2 Core 6 | . . . 2 . . . 4 Reactor . | . . . . . . . . Propulsion 18 | 4 2 2 2 1 . . 7 Treads . | . . . . . . . . Leg 8 | 2 2 1 . . . . 3 Wheel 6 | 2 . . . 1 . . 3 Hover 4 | . . 1 2 . . . 1 Flight . | . . . . . . . . Utility 27 | 1 3 3 5 3 . 2 10 Device 10 | . 1 1 1 2 . 1 4 Storage 4 | 1 1 1 . . . 1 . Processor 5 | . . 1 1 1 . . 2 Hackware 1 | . . . . . . . 1 Protection 7 | . 1 . 3 . . . 3 Artifact . | . . . . . . . . Weapon 33 | 2 5 3 3 4 2 1 13 Energy Gun 11 | 1 3 3 . 1 . . 3 Energy Cannon 7 | . . . 1 . . . 6 Ballistic Gun 4 | 1 . . 1 . 1 . 1 Ballistic Cannon 5 | . . . 1 2 . . 2 Launcher 4 | . 2 . . 1 . . 1 Special Weapon . | . . . . . . . . Impact Weapon 1 | . . . . . . 1 . Slashing Weapon . | . . . . . . . . Piercing Weapon 1 | . . . . . 1 . . Special Melee Weapon . | . . . . . . . . Unidentified Prototypes 8 | . . 1 1 . . 1 5 Parts Lost 29 | . 2 1 . 2 . . 24 Power 4 | . 1 . . 1 . . 2 Propulsion 8 | . . . . . . . 8 Utility 13 | . . 1 . 1 . . 11 Weapon 4 | . 1 . . . . . 3 Highest Loss Streak 13 | . 1 1 . 1 . . 13 To Critical Strikes . | . . . . . . . . Average Backups 8 | 2 7 8 9 9 9 9 9 Power . | . 1 1 1 . . . . Propulsion 3 | 1 2 4 4 3 3 3 2 Utility 1 | . . . 1 1 2 2 2 Weapon 3 | . 2 3 3 3 4 3 3 Tool/Special . | . . . . . . . . Unused Backups 12 | . 1 . 5 1 . . 5 Power 2 | . . . 1 . . . 1 Propulsion 3 | . . . 1 1 . . 1 Utility 2 | . . . . . . . 2 Weapon 5 | . 1 . 3 . . . 1 Tool/Special . | . . . . . . . . Average Slot Usage (%) 96 | . 98 93 97 99 93 98 95 Engine 5 | . 14 11 1 1 7 7 2 Core 3 | . . . 7 5 . . 4 Leg 7 | . 28 19 3 . . . 1 Wheel 5 | . . . 8 7 7 7 9 Hover 3 | . . 2 5 7 7 7 2 Device 11 | . 7 10 9 14 15 15 13 Storage 9 | . 14 11 9 7 7 13 7 Processor 7 | . . 6 9 9 15 8 10 Hackware 1 | . . . . . . . 4 Protection 8 | . 5 9 16 12 7 7 5 Energy Gun 9 | . 17 19 12 5 . . 6 Energy Cannon 5 | . . . 3 7 7 7 9 Ballistic Gun 4 | . 4 . 2 6 5 7 4 Ballistic Cannon 4 | . . . 4 7 2 5 6 Launcher 2 | . 5 2 3 1 . . . Piercing Weapon 1 | . . . . . 7 7 1 Peak Build Rating 55 | 6 10 16 29 40 40 41 55 Average Rating 29 | 5 8 12 23 36 35 39 43 On Entrance 22 | . 6 9 16 29 40 36 40 Avg Prop Armor Cover (%) 4 | . . 9 4 3 5 4 3 Naked Turns 4 | . . . . . . . 4 Heaviest Build 67 | 10 15 25 38 50 39 43 67 Greatest Support 36 | 32 20 23 16 16 10 10 36 Greatest Overweight (x) 16 | . . 3 4 4 3 4 16 Average Overweight (x) 1 | . . 1 1 2 3 3 2 Largest Inventory Capacity 10 | 8 8 10 10 10 10 10 10 Average Capacity 9 | 7 8 9 10 10 10 10 9 Most Carried 10 | 5 8 10 10 10 10 10 10 Average Carried 8 | 2 7 8 9 9 9 9 9 Final Capacity 10 | 8 8 10 10 10 10 10 5 Final Carried 10 | 4 8 10 10 10 10 10 3 Class Distribution -------------------- 38% | Gunner 26% | Mutant 13% | Tank 12% | Scavenger-Gunner 7% | Scavenger-Mutant Dominant Class ---------------- Mutant | -10/Materials Mutant | -9/Materials Tank | -8/Materials Gunner | -7/Factory Mutant | -7/Waste Gunner | -7/Factory Gunner | -7/Storage Resources | -11 -10 -9 -8 -7 -7 -7 -7 ----------- Run | Yrd Mat Mat Mat Fac Was Fac Sto Matter Collected 2444 | 275 161 129 402 166 259 16 1036 Remotely . | . . . . . . . . Salvage Created 3875 | 95 350 199 661 614 . 16 1940 Parts 195 | 3 19 12 34 26 . 2 99 Haulers Intercepted 8 | . 1 1 1 1 . . 4 Recyclers Shooed 3 | . 2 . . 1 . . . Parts Field Recycled . | . . . . . . . . Retrieved Matter . | . . . . . . . . Parts Self-Destructed . | . . . . . . . . Prevented . | . . . . . . . . Parts Restored . | . . . . . . . . Kills | -11 -10 -9 -8 -7 -7 -7 -7 ------- Run | Yrd Mat Mat Mat Fac Was Fac Sto Combat Hostiles Destroyed 84 | . 9 6 18 7 . . 44 Guns 35 | . 5 3 9 2 . . 16 Cannons 34 | . . . 5 5 . . 24 AOE 15 | . 4 3 4 . . . 4 Classes Destroyed 14 | 2 4 2 2 1 . 1 2 Worker 7 | 1 1 . . 5 . . . Builder 6 | . . . 2 . . . 4 Hauler 8 | . 1 1 1 1 . . 4 Recycler 6 | 1 1 . . 2 . . 2 Mechanic 2 | . . . . . . . 2 Operator 2 | . . . . . . 1 1 Watcher 5 | . 1 . . 3 . . 1 Swarmer 23 | . 3 2 6 . . . 12 Grunt 43 | . 6 2 8 5 . . 22 Brawler 1 | . . 1 . . . . . Duelist 1 | . . . . . . . 1 Sentry 9 | . . 1 3 . . . 5 Hunter 2 | . . . 1 . . . 1 Programmer 5 | . . . . 2 . . 3 Best Kill Streak 11 | 1 3 3 5 5 . 1 11 Combat Bots Only 8 | . 3 3 5 2 . . 8 Max Kills in Single Turn 3 | 1 2 1 3 2 . 1 3 Gunslinging . | . . . . . . . . Exploded 3 | . 2 1 3 . . . 1 Melee . | . . . . . . . . Uniques/NPCs Destroyed . | . . . . . . . . Combat | -11 -10 -9 -8 -7 -7 -7 -7 -------- Run | Yrd Mat Mat Mat Fac Was Fac Sto Hostile Shots Fired 678 | . 53 37 57 50 . . 481 Missed 225 | . 6 14 23 21 . . 161 Hits 453 | . 47 23 34 29 . . 320 Melee 14 | . . 2 . . . . 12 Projectile 439 | . 47 21 34 29 . . 308 Critical Strikes 10 | . . 1 2 2 . . 5 Part Disruptions 2 | . . . . 1 . . 1 Actively Blocked 1 | . . . . 1 . . . Damage Taken 5732 | . 534 314 533 446 . . 3905 Core 984 | . 98 84 92 58 . . 652 Absorbed by Shields . | . . . . . . . . Redirected to Shielding 112 | . 14 11 28 28 . . 31 Ignored by Resistances 54 | . . . . . . . 54 Regen/Repaired (Parts) 101 | . . . . . . . 101 Core Remaining (%) 80 | 100 60 79 83 . . . . Volleys Fired 218 | 7 35 18 34 32 . 4 88 Largest 4 | 2 2 2 3 4 . 3 4 Hottest 195 | 60 130 130 162 172 . 125 195 Shots Fired 636 | 14 64 36 85 119 . 13 305 Gun 322 | 14 60 32 46 56 . 4 110 Cannon 291 | . . . 31 62 . 9 189 Launcher 23 | . 4 4 8 1 . . 6 Special . | . . . . . . . . Kinetic 242 | 7 12 . 28 61 . 9 125 Thermal 330 | 7 48 32 34 31 . 4 174 Explosive 23 | . 4 4 8 1 . . 6 Electromagnetic 41 | . . . 15 26 . . . Robot Hit Streak 20 | 4 7 7 10 7 . 2 20 Robot Miss Streak 9 | 2 5 6 4 9 . 6 5 Penetration Max . | . . . . . . . . Secondary Targets 1 | . 1 . . . . . . Max Gunslinging Chain 1 | . 1 . . . . . . Shots Hit Robots 379 | 8 35 19 63 69 . 5 180 Core Hits 240 | 3 20 12 65 38 . 1 101 Critical Kills . | . . . . . . . . Critical Parts Destroyed 1 | . . . . . . . 1 Critical Strikes 11 | . 1 1 . . . . 9 Burn 4 | . 1 1 . . . . 2 Destroy 1 | . . . . . . . 1 Blast 6 | . . . . . . . 6 Melee Attacks . | . . . . . . . . Impact . | . . . . . . . . Slashing . | . . . . . . . . Piercing . | . . . . . . . . Sneak Attacks . | . . . . . . . . Combat Hostiles . | . . . . . . . . Follow-up Attacks . | . . . . . . . . Damage Inflicted 10871 | 88 618 447 1502 2001 . 121 6094 Guns 3949 | 88 442 251 591 670 . 15 1892 Cannons 4455 | . . . 496 1059 . 106 2794 Explosions 2440 | . 156 196 410 272 . . 1406 Melee . | . . . . . . . . Ramming 27 | . 20 . 5 . . . 2 Kinetic 2994 | 22 46 . 486 752 . 67 1621 Thermal 5136 | 66 396 251 480 824 . 54 3065 Explosive 2054 | . 156 196 296 . . . 1406 Electromagnetic 660 | . . . 235 425 . . . Impact . | . . . . . . . . Slashing . | . . . . . . . . Piercing . | . . . . . . . . Highest Corruption 4 | . . . . 4 4 4 2 Average Corruption 3 | . . . . 3 4 3 2 Corruption Purged 4 | . . . . . . 4 . Corruption Blocked 6 | . . . . . . . 6 Effects 15 | . . . . 7 . 7 1 Message Errors 4 | . . . . 1 . 2 1 Matter Fused 3 | . . . . 1 . 2 . Heat Flow Errors 2 | . . . . 1 . 1 . Data Loss (minor) 3 | . . . . 2 . 1 . Misfires 1 | . . . . . . 1 . Weapon Failures 2 | . . . . 2 . . . Overload Shots . | . . . . . . . . Overflow Damage 360 | . 9 38 33 76 . 36 168 Projectiles 111 | . . . 2 36 . 36 37 Explosions 249 | . 9 38 31 40 . . 131 Melee . | . . . . . . . . Knockbacks 41 | . . . 12 14 . . 15 Impact . | . . . . . . . . Kinetic 39 | . . . 11 14 . . 14 Secondary 2 | . . . 1 . . . 1 Self-Inflicted Damage 106 | . 39 44 22 . . . 1 Shots 5 | . 2 2 1 . . . . Rammed 3 | . . 1 1 . . . 1 Targets Rammed 10 | . 7 1 1 . . . 1 Kicked 7 | . 7 . . . . . . Crushed . | . . . . . . . . Highest Temperature 687 | 40 687 210 136 226 . 278 378 Average Temperature 84 | 22 195 82 39 37 . 154 48 Received Heat Transfer 1818 | . 240 81 234 153 . . 1110 Effects 13 | . 13 . . . . . . Shutdowns 3 | . 3 . . . . . . Energy Bleed 4 | . 4 . . . . . . Interference 2 | . 2 . . . . . . Matter Decay 1 | . 1 . . . . . . Damage (minor) 2 | . 2 . . . . . . Damage (major) 1 | . 1 . . . . . . Siege Activations . | . . . . . . . . Martial Activations . | . . . . . . . . Shielding Activations . | . . . . . . . . Robots Disrupted . | . . . . . . . . Combat Hostiles . | . . . . . . . . Robots Corrupted . | . . . . . . . . Combat Hostiles . | . . . . . . . . Parts Fried 1 | . . . . 1 . . . Impact Corruptions . | . . . . . . . . Robots Melted . | . . . . . . . . Combat Hostiles . | . . . . . . . . Parts Melted 10 | . . 3 . . . . 7 Heat Transferred 8348 | 150 1039 632 609 940 . 74 4904 Parts Sabotaged . | . . . . . . . . Parts Stolen . | . . . . . . . . Parts Stripped . | . . . . . . . . Power Chain Reactions 2 | . . . 1 1 . . . Alert | -11 -10 -9 -8 -7 -7 -7 -7 ------- Run | Yrd Mat Mat Mat Fac Was Fac Sto Maximum Alert Level 3 | . . . 2 2 1 . 3 Low Security (%) 66 | 100 100 100 28 92 70 100 27 Level 1 18 | . . . 57 . 29 . 32 Level 2 11 | . . . 13 7 . . 28 Level 3 3 | . . . . . . . 12 Level 4 . | . . . . . . . . Level 5 . | . . . . . . . . High Security . | . . . . . . . . Max Security . | . . . . . . . . Peak Influence 1049 | 5 110 166 429 645 217 109 1049 Initial 217 | . 3 15 17 180 217 109 . Average 198 | 1 33 90 251 162 187 49 382 Influence Increases 3630 | 10 299 213 631 763 . 21 1693 Destroy 0b10 Robot/C 1680 | . 180 120 360 140 . . 880 Destroy 0b10 Robot/NC 180 | 10 20 5 15 55 . 5 70 Destroy Leader 396 | . 34 22 92 38 . . 210 Successful Hack 48 | . . . . . . 14 34 Disable Machine 615 | . 15 15 90 315 . . 180 Anti-Garrison Action 300 | . . . . 150 . . 150 Destroy Structure 261 | . 35 21 44 5 . 2 154 Partial Spotted 15 | . . . 15 . . . . Lose Combat Pursuer 135 | . 15 30 15 60 . . 15 Influence Decreases 2633 | 5 266 208 277 539 464 178 696 Entered New Map 720 | . 2 23 26 217 404 48 . Time Decay 1621 | 5 244 175 251 302 60 130 454 Lost Part 282 | . 20 10 . 20 . . 232 Lost Ally 10 | . . . . . . . 10 Squads Dispatched 28 | . 2 1 3 4 . 2 16 Investigation 4 | . 1 . 1 . . . 2 Extermination 6 | . . . . 2 . 1 3 Reinforcement 9 | . 1 1 2 . . 1 4 Assault 6 | . . . . 2 . . 4 Garrison 3 | . . . . . . . 3 Intercept . | . . . . . . . . Searches Triggered . | . . . . . . . . Construction Impeded . | . . . . . . . . Haulers Reinforced 2 | . . . . . . . 2 Active Scanning Responses . | . . . . . . . . Cargo Convoy Interrupts . | . . . . . . . . Stealth | -11 -10 -9 -8 -7 -7 -7 -7 --------- Run | Yrd Mat Mat Mat Fac Was Fac Sto Distress Signals 6 | . . 1 2 1 . . 2 Communications Jammed . | . . . . . . . . Distress Signals . | . . . . . . . . Times Spotted 142 | . 15 11 25 15 2 2 72 Peak Tracking Total 15 | . 3 5 4 3 1 1 15 Tactical Retreats 9 | . 1 2 1 3 1 . 1 Traps | -11 -10 -9 -8 -7 -7 -7 -7 ------- Run | Yrd Mat Mat Mat Fac Was Fac Sto Traps Triggered 6 | . 1 . 1 1 . . 3 Indirectly . | . . . . . . . . Trap Hack Attempts . | . . . . . . . . Triggered . | . . . . . . . . Disarmed . | . . . . . . . . Reprogrammed . | . . . . . . . . Reused . | . . . . . . . . Traps Extracted . | . . . . . . . . Installed . | . . . . . . . . Triggered . | . . . . . . . . Machines | -11 -10 -9 -8 -7 -7 -7 -7 ---------- Run | Yrd Mat Mat Mat Fac Was Fac Sto Machines Disabled 43 | . 1 1 6 22 . . 13 Max in Single Turn 22 | . 1 1 2 22 . . 3 Garrison Access 2 | . . . . 1 . . 1 Machines Repaired . | . . . . . . . . Machines Dismantled . | . . . . . . . . Machines Sabotaged . | . . . . . . . . Overloaded Fab Kills . | . . . . . . . . Hacking | -11 -10 -9 -8 -7 -7 -7 -7 --------- Run | Yrd Mat Mat Mat Fac Was Fac Sto Machines Accessed 12 | . . . . 3 . 2 7 Terminals 9 | . . . . 1 . 2 6 Fabricators 2 | . . . . 2 . . . Repair Stations 1 | . . . . . . . 1 Recycling Units . | . . . . . . . . Scanalyzers . | . . . . . . . . Garrison Access . | . . . . . . . . Total Hacks 20 | . . . . 4 . 2 14 Successful 9 | . . . . . . 2 7 Failed 11 | . . . . 4 . . 7 Catastrophic 4 | . . . . 2 . . 2 Database Lockouts . | . . . . . . . . Manual . | . . . . . . . . Terminals 15 | . . . . 1 . 2 12 Fabricators 3 | . . . . 3 . . . Repair Stations 2 | . . . . . . . 2 Recycling Units . | . . . . . . . . Scanalyzers . | . . . . . . . . Garrison Access . | . . . . . . . . Terminal Hacks 7 | . . . . . . 2 5 Record 2 | . . . . . . 1 1 Prototype ID Bank 1 | . . . . . . 1 . Open Door 4 | . . . . . . . 4 Fabricator Hacks . | . . . . . . . . Repair Station Hacks 2 | . . . . . . . 2 Scan Component 1 | . . . . . . . 1 Repair 1 | . . . . . . . 1 Recycling Unit Hacks . | . . . . . . . . Scanalyzer . | . . . . . . . . Garrison Access Hacks . | . . . . . . . . Unauthorized Hacks . | . . . . . . . . Terminals . | . . . . . . . . Fabricators . | . . . . . . . . Repair Stations . | . . . . . . . . Recycling Units . | . . . . . . . . Scanalyzers . | . . . . . . . . Garrison Access . | . . . . . . . . Data Cores Recovered . | . . . . . . . . Used . | . . . . . . . . Hacking Detections 7 | . . . . 3 . 1 3 Full Trace Events 2 | . . . . . . . 2 Feedback Events . | . . . . . . . . Feedback Blocked . | . . . . . . . . Robot Schematics Acquired . | . . . . . . . . Robots Built . | . . . . . . . . Authchips . | . . . . . . . . Time . | . . . . . . . . Total Robot Build Rating . | . . . . . . . . Part Schematics Acquired . | . . . . . . . . Parts Built . | . . . . . . . . Authchips . | . . . . . . . . Time . | . . . . . . . . Total Part Build Rating . | . . . . . . . . Part Studies Acquired . | . . . . . . . . Parts Repaired 1 | . . . . . . . 1 Time 31 | . . . . . . . 31 Parts Recycled . | . . . . . . . . Recycled Matter . | . . . . . . . . Retrieved Matter . | . . . . . . . . Retrieved Components . | . . . . . . . . Parts Scanalyzed . | . . . . . . . . Part Schematics Acquired . | . . . . . . . . Parts Damaged . | . . . . . . . . Bothacking | -11 -10 -9 -8 -7 -7 -7 -7 ------------ Run | Yrd Mat Mat Mat Fac Was Fac Sto Used RIF Installer . | . . . . . . . . Robots Hacked . | . . . . . . . . Non-combat . | . . . . . . . . Combat . | . . . . . . . . Robot Hacks Applied . | . . . . . . . . Relay Couplers Released 3 | . . . . 2 . . 1 Machine Destruction 3 | . . . . 2 . . 1 Fabnet Peak Effective % . | . . . . . . . . Robots Rewired . | . . . . . . . . Allies Hacked . | . . . . . . . . Hacks Repelled . | . . . . . . . . Allies | -11 -10 -9 -8 -7 -7 -7 -7 -------- Run | Yrd Mat Mat Mat Fac Was Fac Sto Total Allies . | . . . . . . . . Largest Group . | . . . . . . . . Highest-Rated Group . | . . . . . . . . Highest-Rated Ally . | . . . . . . . . Total Orders . | . . . . . . . . Ally Attacks . | . . . . . . . . Total Damage . | . . . . . . . . Kills . | . . . . . . . . Allies Corrupted . | . . . . . . . . Allies Melted . | . . . . . . . . Intel | -11 -10 -9 -8 -7 -7 -7 -7 ------- Run | Yrd Mat Mat Mat Fac Was Fac Sto Active Infowar (turns) 740 | . . 228 264 . . . 248 Optics 740 | . . 228 264 . . . 248 Robot Analysis Total . | . . . . . . . . Derelict Logs Recovered . | . . . . . . . . Drone Launches 2 | . . . . . . . 2 Drone Recoveries 1 | . . . . . . . 1 Exploration | -11 -10 -9 -8 -7 -7 -7 -7 ------------- Run | Yrd Mat Mat Mat Fac Was Fac Sto Turns Passed 4046 | 105 704 377 543 668 137 311 1201 Spaces Moved 2311 | 64 428 170 329 408 105 216 591 Core 17 | 11 . . . . . . 6 Treads . | . . . . . . . . Legs 626 | 24 428 135 . . . . 39 Wheels 1631 | 29 . . 327 408 105 216 546 Hover 37 | . . 35 2 . . . . Flight . | . . . . . . . . Fastest Speed 50 | 50 120 120 115 125 125 125 50 Average Speed 129 | 98 120 175 123 132 125 131 128 Slowest Speed 850 | 120 120 250 300 140 125 140 850 Overloaded Moves . | . . . . . . . . Propulsion Burnouts . | . . . . . . . . Robots Hopped . | . . . . . . . . Potential Cave-ins . | . . . . . . . . Cave-ins Triggered . | . . . . . . . . Exploration Rate (%) 34 | 4 46 18 32 11 73 4 90 Regions Visited 7 Branch Regions 1 Pre-discovered Areas . | . . . . . . . . Known Exits Taken . | . . . . . . . . Unknown Exits Taken 5 | 1 1 1 1 . . 1 . Scrap Searched . | . . . . . . . . Spaces Dug . | . . . . . . . . Terrain Destroyed 274 | . 31 19 45 4 . 2 173 Melee . | . . . . . . . . Projectile 71 | . . . 2 . . 2 67 AOE 203 | . 31 19 43 4 . . 106 Terrain Rammed . | . . . . . . . . Walls Destroyed . | . . . . . . . . Machines Disabled . | . . . . . . . . Actions | -11 -10 -9 -8 -7 -7 -7 -7 --------- Run | Yrd Mat Mat Mat Fac Was Fac Sto Total 2908 | 93 554 211 403 474 112 235 826 Wait 121 | 1 55 . . 11 . . 54 Move 2305 | 63 427 169 328 408 104 215 591 Hop . | . . . . . . . . Pick Up 72 | 12 12 7 10 8 1 4 18 Fast Attach 29 | . 2 2 5 . . 3 17 Attach 34 | 6 2 3 2 4 1 1 15 Detach 2 | . . . . . 2 . . Swap 45 | 2 7 6 8 5 1 3 13 Drop 71 | 2 7 5 15 6 2 5 29 Fire 218 | 7 35 18 34 32 . 4 88 Melee . | . . . . . . . . Ram 3 | . . 1 1 . . . 1 Kick 7 | . 7 . . . . . . Crush . | . . . . . . . . Escape Stasis . | . . . . . . . . Rewire 1 | . . . . . 1 . . Trap . | . . . . . . . . Miscellaneous . | . . . . . . . . Route ------- -11/Scrapyard -10/Materials (discovered 2 exits: [*Mat] / [*Min]) -9/Materials -8/Materials -7/Factory -7/Waste -7/Factory -7/Storage (discovered 1 exit: [*Fac]) History --------- Turn | Location | Event 9 | -11/Scrapyard | Discovered new exit (range 16) 106 | -11/Scrapyard | Entered Materials 269 | -10/Materials | Discovered new exit (range 14) 313 | -10/Materials | Build established: Mutant 662 | -10/Materials | Discovered new exit (range 16) 810 | -10/Materials | Entered another Materials area 810 | -9/Materials | Evolved 2 slots: Utility x2 917 | -9/Materials | Build established: Scavenger-Mutant 1158 | -9/Materials | Discovered new exit (range 15) 1187 | -9/Materials | Entered another Materials area 1187 | -8/Materials | Evolved 2 slots: Utility x1, Weapon x1 1552 | -8/Materials | Build established: Tank 1712 | -8/Materials | Discovered new exit (range 15) 1730 | -8/Materials | Entered Factory 1730 | -7/Factory | Evolved 2 slots: Utility x1, Weapon x1 2037 | -7/Factory | Build established: Gunner 2398 | -7/Factory | Sucked down chute 2398 | -7/Factory | Entered Waste 2398 | -7/Waste | The area was eerily silent 2458 | -7/Waste | A Compactor rumbled back to life 2458 | -7/Waste | Spotted C-40 Crusher 2506 | -7/Waste | Discovered new exit (range 11) 2535 | -7/Waste | Entered Factory 2823 | -7/Factory | Discovered new exit (range 7) 2846 | -7/Factory | Entered Storage 3529 | -7/Storage | Build established: Scavenger-Gunner 3642 | -7/Storage | Repaired Micro-nuke Launcher 3744 | -7/Storage | Garrison activated, responded to threat 3797 | -7/Storage | Lost 4 parts (2n2u) 3910 | -7/Storage | Core integrity fell below 50% 3919 | -7/Storage | Lost 3 parts (1n2u) 3924 | -7/Storage | Discovered new exit (range 16) 4013 | -7/Storage | Destroyed 8 combat bots 4045 | -7/Storage | Core integrity fell below 20% 4046 | -7/Storage | First assault squad dispatched 4047 | -7/Storage | Destroyed by L-41 Fighter with Axe Last Messages --------------- 04042_ Dropped Mni. Assault Cannon. 04043_ K-01 Serf collects debris. 04043_ Dropped Mic. Nuclear Core. 04043_ Dropped Mni. Assault Cannon. 04045_ K-01 Serf collects debris. 04046_ ALERT: Unidentified disturbance in Zone 6C, multiple assault carriers dispatched. 04046_ C-45 Heavy ARC bursts open, deploying its payload. 04046_ G-50 Soldier unfolds itself. 04046_ G-47 Trooper unfolds itself. 04046_ L-41 Fighter unfolds itself. 04046_ G-47 Trooper unfolds itself. 04046_ I-36 Angel unfolds itself. 04046_ C-45 Heavy ARC bursts open, deploying its payload. 04046_ G-50 Soldier unfolds itself. 04046_ G-47 Trooper unfolds itself. 04046_ M-28 Smith unfolds itself. 04046_ Slammed into G-47 Trooper. Map ----- +----------------------------------------------------+ | | | | | | | | | | | | | | | | | | | | | | | | | ????????????????????????????????????????? | | ????????????????????????????????????????? | | ????????????????????????????????????????? | | ????????????????????????????????????????? | | ????????????????????????????????????????? | | ????????????????????????????????????????? | | ????????????????????????????????????????? | | ????????????????????????????????????????? | | ????????????????????????????????????????? | | ????????????????????????????????????????? | | ???????????????????????#####????????????? | | ???????????????????????#g%g#???###??????? | | ??????????????????""?###gg%#?? ??????? | | ?????????????????? #g@l#?? """?????? | | ?????????????#?? #gg #? """ #???? | | ?????????????# """ """ #i #? """ #???? | | ????????????## """ """ + m/ ?????? | | ????????????# """ """ # # """?????? | | ???????????### l # """ ????? | | ??????????## # ! #b] """ #???? | | ??????????# [ * #???? | | ?????????? b%# ###### #???? | | ?????????# ## b #??????????? | | ?????????# ! % # ##?????????? | | ????????# = #?????????? | | ?????????# == % [ ##?????????? | | ????????# % = % ######?????? | | ????????# * ! ! #!!!!#?????? | | ??????????# !!] = = #?????? | | ??????????#### ! !! *[!= !#?????? | | ???????????# "" %" ! % #"#####?????? | | ???????????### ##"G"#### %####?????????? | | ?????????????####"""#?#" % ###??????????? | | ????????????????#####?#"*= #T###????????? | | ??????????????????????## = " #????????? | | ??????????????????????#"[]=#####????????? | | ??????????????????????## [ #????????????? | | ???????????????????????#! #????????????? | +----------------------------------------------------+ Best States ------------- Heat Dissipation 61 Energy Generation 16 Energy Capacity 465 Matter Stores 300 Matter Capacity 300 Sight Range 20 Terrain Scan Density 10 Corruption Block 8 Armor Coverage 375 Resistance: KI 30 Core Shielding 20 Propulsion Shielding 66 Evasion (%) 55 Targeting Accuracy 8 Target Analysis 5 Particle Charging 15 Offensive Hacking 10 Item Schematics ----------------- None Robot Schematics ------------------ None Fabricated ------------ Nothing Repaired ---------- Micro-nuke Launcher | 3% | -7/Storage Studied --------- None Alien Tech Used ----------------- None Achievements -------------- None Challenges ------------ None Game ------ Seed AlertLightAutocannon Manual? 0 Play Time 00:53:37 Cumulative 61.2 hours Start 2026.03.30 @ 21:58:44 End 2026.04.01 @ 14:09:11 Sessions 3 Manual Loads 0 Difficulty Rogue Special Mode None Game No. 75 Rogue 75 Adventurer 0 Explorer 0 Win Type - Total 1 Types 0/0/1/0/0/0/0/0/0/0 Lore% 31 Gallery% 40 Achievement% 30 Wizard Run 0 Options --------- Layout 1 ASCII 0 Keyboard 0 Movement Mouse Keybinds 0 Fullscreen 2 Font 32/SmallcapsGlow Map View 50x35 Zoom Use 0% Tactical HUD 1 Map Filters NONE Filters NONE Steam 1 RUN: 9467450d-b16d-4e5f-9079-72f4b519b195